Cogmind - Beta 12 @@@ ROGUE MODE // 2023.05.13 @ 19:30:44 Player: Ms. V3-11A Result: Destroyed by 8R-AWN with 8R-AWN's Boregun Performance ------------- Evolutions (0) 0 Regions Visited (3) 600 Robots Destroyed (17) 85 Value Destroyed (412) 412 Prototype IDs (3) 60 Alien Tech Used (0) 0 Bonus (0) 0 TOTAL SCORE: 1157 Bonus ------- None Cogmind --------- Core Integrity 0/250 Matter 125/300 Energy 250/250 System Corruption 2% Temperature Cool (0) Movement Walking (260) Ox2 Location -10/Exiles Parts ------- > --- POWER (1) -------- Ion Engine > --- PROPULSION (2) --- Aluminum Leg Aluminum Leg > --- UTILITY (2) ------ High-capacity Storage Unit > --- WEAPON (2) ------- Particle Gun (fused) > --- INVENTORY (20) --- Ion Engine Aluminum Leg Heat Sink High-capacity Matter Pod (0) High-capacity Matter Pod (0) Targeting Computer Particle Gun Mace Peak State ------------ > --- POWER ------------ Ion Engine > --- PROPULSION ------- Aluminum Leg Aluminum Leg > --- UTILITY ---------- Heat Sink High-capacity Storage Unit > --- WEAPON ----------- Particle Gun Particle Gun > --- INVENTORY -------- Ion Engine Ion Engine Aluminum Leg Heat Sink High-capacity Matter Pod High-capacity Matter Pod Targeting Computer Grenade Launcher Mace [Rating: 10] Favorites ----------- Power Ion Engine Engine Ion Engine Propulsion Aluminum Leg Leg Aluminum Leg Utility Small Storage Unit Device Heat Sink Storage Small Storage Unit Protection Light Armor Plating Weapon Particle Gun Energy Gun Particle Gun Ballistic Gun Assault Rifle Ballistic Cannon Light Cannon Launcher Grenade Launcher Build | -11 -10 -10 -10 ------- Run | Jun Mat Min Exi Slots Evolved . | . . . . Power . | . . . . Propulsion . | . . . . Utility . | . . . . Weapon . | . . . . Parts Attached 20 | 1 16 . 3 Power 4 | . 4 . . Engine 4 | . 4 . . Core . | . . . . Reactor . | . . . . Propulsion 5 | . 3 . 2 Treads . | . . . . Leg 5 | . 3 . 2 Wheel . | . . . . Hover . | . . . . Flight . | . . . . Utility 4 | . 4 . . Device 1 | . 1 . . Storage 1 | . 1 . . Processor . | . . . . Hackware . | . . . . Protection 2 | . 2 . . Artifact . | . . . . Weapon 7 | 1 5 . 1 Energy Gun 2 | . 2 . . Energy Cannon . | . . . . Ballistic Gun 1 | 1 . . . Ballistic Cannon 2 | . 2 . . Launcher 2 | . 1 . 1 Special Weapon . | . . . . Impact Weapon . | . . . . Slashing Weapon . | . . . . Piercing Weapon . | . . . . Special Melee Weapon . | . . . . Unidentified Prototypes . | . . . . Parts Lost 7 | . 3 . 4 Power 1 | . 1 . . Propulsion 3 | . 1 . 2 Utility 2 | . 1 . 1 Weapon 1 | . . . 1 Highest Loss Streak 4 | . 2 . 4 To Critical Strikes . | . . . . Average Slot Usage (%) 89 | . 86 100 96 Engine 13 | . 13 14 14 Leg 27 | . 27 28 26 Device 4 | . . 14 13 Storage 14 | . 14 14 14 Protection 1 | . 1 . . Energy Gun 18 | . 15 28 25 Ballistic Gun 1 | . 2 . . Ballistic Cannon 3 | . 4 . . Launcher 3 | . 4 . 1 Naked Turns . | . . . . Heaviest Build 52 | 12 52 52 52 Greatest Support 20 | 20 20 20 20 Greatest Overweight (x) 2 | . 2 2 2 Average Overweight (x) . | . . 2 2 Largest Inventory Capacity 20 | 8 20 20 20 Average Capacity 14 | 8 11 20 20 Most Carried 12 | 7 8 12 10 Average Carried 7 | 5 7 9 9 Final Capacity 20 | 8 20 20 20 Final Carried 10 | 4 8 10 8 Class Distribution -------------------- 100% | Mutant Dominant Class ---------------- Mutant | -10/Materials Mutant | -10/Mines Mutant | -10/Exiles Resources | -11 -10 -10 -10 ----------- Run | Jun Mat Min Exi Matter Collected 445 | 200 159 86 . Remotely . | . . . . Salvage Created 362 | . 245 86 31 Parts 31 | . 19 5 7 Haulers Intercepted . | . . . . Recyclers Shooed . | . . . . Parts Field Recycled . | . . . . Retrieved Matter . | . . . . Parts Self-Destructed . | . . . . Prevented . | . . . . Kills | -11 -10 -10 -10 ------- Run | Jun Mat Min Exi Combat Hostiles Destroyed 20 | . 12 2 6 Guns 3 | . 1 2 . AOE 16 | . 10 . 6 Classes Destroyed 5 | . 4 . 1 Tunneler 1 | . 1 . . Watcher 1 | . 1 . . Swarmer 6 | . 6 . . Grunt 8 | . 6 2 . Assembled 6 | . . . 6 Best Kill Streak 7 | . 6 2 7 Combat Bots Only 6 | . 5 2 6 Max Kills in Single Turn 2 | . 2 1 2 Gunslinging . | . . . . Exploded 2 | . 2 . 2 Melee . | . . . . Uniques/NPCs Destroyed 1 | . . . 1 EX-HEX (-10/Exiles) Combat | -11 -10 -10 -10 -------- Run | Jun Mat Min Exi Damage Taken 1024 | . 574 60 390 Core 256 | . 112 32 112 Absorbed by Shields . | . . . . Core Remaining (%) 100 | 100 . . . Volleys Fired 46 | . 33 4 9 Largest 2 | . 2 2 1 Hottest 130 | . 130 130 65 Shots Fired 72 | . 54 8 10 Gun 57 | . 42 8 7 Cannon . | . . . . Launcher 15 | . 12 . 3 Special . | . . . . Kinetic 15 | . 15 . . Thermal 42 | . 27 8 7 Explosive 15 | . 12 . 3 Electromagnetic . | . . . . Robot Hit Streak 6 | . 6 3 3 Robot Miss Streak 4 | . 4 1 2 Penetration Max . | . . . . Secondary Targets 1 | . . 1 . Max Gunslinging Chain 1 | . . 1 . Shots Hit Robots 38 | . 26 6 6 Core Hits 37 | . 20 3 14 Critical Kills . | . . . . Critical Parts Destroyed . | . . . . Critical Strikes 3 | . 2 1 . Burn 3 | . 2 1 . Melee Attacks . | . . . . Impact . | . . . . Slashing . | . . . . Piercing . | . . . . Sneak Attacks . | . . . . Combat Hostiles . | . . . . Follow-up Attacks . | . . . . Damage Inflicted 1461 | . 965 91 405 Guns 435 | . 298 91 46 Cannons . | . . . . Explosions 1026 | . 667 . 359 Melee . | . . . . Ramming . | . . . . Kinetic 130 | . 130 . . Thermal 305 | . 168 91 46 Explosive 1026 | . 667 . 359 Electromagnetic . | . . . . Impact . | . . . . Slashing . | . . . . Piercing . | . . . . Highest Corruption 2 | . 2 2 2 Average Corruption 2 | . 2 2 2 Corruption Purged . | . . . . Corruption Blocked . | . . . . Effects 12 | . 5 4 3 Message Errors 4 | . 2 1 1 Parts Fused 1 | . 1 . . Data Loss (minor) 1 | . . 1 . Data Loss (major) 4 | . 1 2 1 Misfires 2 | . 1 . 1 Overload Shots . | . . . . Overflow Damage 15 | . . . 15 Projectiles . | . . . . Explosions 15 | . . . 15 Melee . | . . . . Knockbacks . | . . . . Impact . | . . . . Kinetic . | . . . . Secondary . | . . . . Self-Inflicted Damage 48 | . 37 . 11 Shots 2 | . 1 . 1 Rammed . | . . . . Targets Rammed . | . . . . Kicked . | . . . . Crushed . | . . . . Highest Temperature 389 | . 389 180 114 Average Temperature 146 | . 174 91 44 Received Heat Transfer 293 | . 240 33 20 Effects 5 | . 5 . . Shutdowns 1 | . 1 . . Matter Decay 2 | . 2 . . Short Circuit 1 | . 1 . . Damage (minor) 1 | . 1 . . Siege Activations . | . . . . Robots Corrupted . | . . . . Combat Hostiles . | . . . . Parts Fried . | . . . . Impact Corruptions . | . . . . Robots Melted 1 | . 1 . . Combat Hostiles 1 | . 1 . . Parts Melted 5 | . 3 . 2 Heat Transferred 1036 | . 629 296 111 Parts Sabotaged . | . . . . Parts Stolen . | . . . . Parts Stripped . | . . . . Power Chain Reactions . | . . . . Missiles Intercepted . | . . . . Alert | -11 -10 -10 -10 ------- Run | Jun Mat Min Exi Peak Influence 303 | . 303 50 . Initial . | . . . . Average 99 | . 115 29 . Maximum Alert Level 1 | . 1 . . Low Security (%) 78 | 100 73 100 . Level 1 21 | . 26 . . Level 2 . | . . . . Level 3 . | . . . . Level 4 . | . . . . Level 5 . | . . . . High Security . | . . . . Max Security . | . . . . Squads Dispatched 2 | . 2 . . Investigation . | . . . . Extermination . | . . . . Reinforcement 2 | . 2 . . Assault . | . . . . Garrison . | . . . . Intercept . | . . . . Searches Triggered . | . . . . Construction Impeded . | . . . . Haulers Reinforced . | . . . . Active Scanning Responses . | . . . . Cargo Convoy Interrupts . | . . . . Stealth | -11 -10 -10 -10 --------- Run | Jun Mat Min Exi Distress Signals . | . . . . Communications Jammed . | . . . . Distress Signals . | . . . . Times Spotted 29 | . 19 2 8 Peak Tracking Total 9 | . 5 2 9 Tactical Retreats . | . . . . Traps | -11 -10 -10 -10 ------- Run | Jun Mat Min Exi Traps Triggered 4 | . 4 . . Indirectly . | . . . . Trap Hack Attempts . | . . . . Triggered . | . . . . Disarmed . | . . . . Reprogrammed . | . . . . Reused . | . . . . Traps Extracted . | . . . . Installed . | . . . . Triggered . | . . . . Machines | -11 -10 -10 -10 ---------- Run | Jun Mat Min Exi Machines Disabled 5 | . 3 . 2 Max in Single Turn 2 | . 2 . 1 Machines Repaired . | . . . . Machines Sabotaged . | . . . . Overloaded Fab Kills . | . . . . Hacking | -11 -10 -10 -10 --------- Run | Jun Mat Min Exi Machines Accessed 2 | . 2 . . Terminals 2 | . 2 . . Fabricators . | . . . . Repair Stations . | . . . . Recycling Units . | . . . . Scanalyzers . | . . . . Garrison Access . | . . . . Total Hacks 4 | . 4 . . Successful 2 | . 2 . . Failed 2 | . 2 . . Catastrophic . | . . . . Database Lockouts . | . . . . Manual . | . . . . Terminals 4 | . 4 . . Fabricators . | . . . . Repair Stations . | . . . . Recycling Units . | . . . . Scanalyzers . | . . . . Garrison Access . | . . . . Terminal Hacks 2 | . 2 . . Prototype ID Bank 1 | . 1 . . Branch Access Points 1 | . 1 . . Fabricator Hacks . | . . . . Repair Station Hacks . | . . . . Recycling Unit Hacks . | . . . . Scanalyzer . | . . . . Garrison Access Hacks . | . . . . Unauthorized Hacks . | . . . . Terminals . | . . . . Fabricators . | . . . . Repair Stations . | . . . . Recycling Units . | . . . . Scanalyzers . | . . . . Garrison Access . | . . . . Data Cores Recovered . | . . . . Used . | . . . . Hacking Detections 1 | . 1 . . Full Trace Events . | . . . . Feedback Events . | . . . . Feedback Blocked . | . . . . Robot Schematics Acquired . | . . . . Robots Built . | . . . . Authchips . | . . . . Time . | . . . . Total Robot Build Rating . | . . . . Part Schematics Acquired . | . . . . Parts Built . | . . . . Authchips . | . . . . Time . | . . . . Total Part Build Rating . | . . . . Parts Repaired . | . . . . Time . | . . . . Parts Recycled . | . . . . Recycled Matter . | . . . . Retrieved Matter . | . . . . Retrieved Components . | . . . . Parts Scanalyzed . | . . . . Part Schematics Acquired . | . . . . Parts Damaged . | . . . . Bothacking | -11 -10 -10 -10 ------------ Run | Jun Mat Min Exi Used RIF Installer . | . . . . Robots Hacked . | . . . . Non-combat . | . . . . Combat . | . . . . Robot Hacks Applied . | . . . . Relay Couplers Released . | . . . . Fabnet Peak Effective % . | . . . . Robots Rewired . | . . . . Allies Hacked . | . . . . Hacks Repelled . | . . . . Allies | -11 -10 -10 -10 -------- Run | Jun Mat Min Exi Total Allies . | . . . . Largest Group . | . . . . Highest-Rated Group . | . . . . Highest-Rated Ally . | . . . . Total Orders . | . . . . Ally Attacks . | . . . . Total Damage . | . . . . Kills . | . . . . Allies Corrupted . | . . . . Allies Melted . | . . . . Intel | -11 -10 -10 -10 ------- Run | Jun Mat Min Exi Robot Analysis Total . | . . . . Derelict Logs Recovered . | . . . . Drone Launches . | . . . . Drone Recoveries . | . . . . Exploration | -11 -10 -10 -10 ------------- Run | Jun Mat Min Exi Turns Passed 1797 | 3 1315 294 185 Spaces Moved 955 | 1 795 96 63 Core . | . . . . Treads . | . . . . Legs 955 | 1 795 96 63 Wheels . | . . . . Hover . | . . . . Flight . | . . . . Fastest Speed 120 | 120 120 260 260 Average Speed 166 | 120 148 260 260 Slowest Speed 260 | 120 260 260 260 Overloaded Moves . | . . . . Propulsion Burnouts . | . . . . Robots Hopped . | . . . . Cave-ins Triggered . | . . . . Exploration Rate (%) 37 | 2 99 21 26 Regions Visited 3 Branch Regions 2 Pre-discovered Areas . | . . . . Known Exits Taken 1 | . 1 . . Unknown Exits Taken 2 | 1 . 1 . Scrap Searched . | . . . . Spaces Dug . | . . . . Terrain Destroyed 68 | . 68 . . Melee . | . . . . Projectile . | . . . . AOE 68 | . 68 . . Terrain Rammed . | . . . . Walls Destroyed . | . . . . Machines Disabled . | . . . . Actions | -11 -10 -10 -10 --------- Run | Jun Mat Min Exi Total 1093 | 4 879 135 75 Wait 46 | . 16 30 . Move 952 | . 794 95 63 Hop . | . . . . Pick Up 14 | . 10 4 . Fast Attach 12 | . 12 . . Attach 5 | 1 2 . 2 Detach 2 | 1 1 . . Swap 3 | . 2 . 1 Drop 13 | 2 9 2 . Fire 46 | . 33 4 9 Melee . | . . . . Ram . | . . . . Kick . | . . . . Crush . | . . . . Escape Stasis . | . . . . Rewire . | . . . . Trap . | . . . . Miscellaneous . | . . . . Route ------- -11/Junkyard -10/Materials (discovered 5 exits: [*Mat x3] / *Min x2) -10/Mines (discovered 2 exits: [*Mat] / [*Exi]) -10/Exiles History --------- Turn | Location | Event 4 | -11/Junkyard | Discovered new exit (range 0) 4 | -11/Junkyard | Entered Materials 40 | -10/Materials | Discovered new exit (range 12) 92 | -10/Materials | Identified exit to Mines 312 | -10/Materials | Build established: Mutant 355 | -10/Materials | Discovered new exit (range 15) 441 | -10/Materials | Discovered new exit (range 10) 1319 | -10/Materials | Entered Mines 1433 | -10/Mines | Discovered new exit (range 3) 1434 | -10/Mines | Core integrity fell below 50% 1600 | -10/Mines | Deemed a non-threat by the Exiles lab entrance 1603 | -10/Mines | Discovered new exit (range 5) 1613 | -10/Mines | Entered Exiles 1678 | -10/Exiles | Met 8R-AWN 1720 | -10/Exiles | Met EX-HEX 1768 | -10/Exiles | Attacked by the Exiles 1781 | -10/Exiles | Destroyed EX-HEX 1789 | -10/Exiles | Core integrity fell below 20% 1798 | -10/Exiles | Destroyed by 8R-AWN with 8R-AWN's Boregun Last Messages --------------- 01775_ as-01372 destroyed. 01775_ Machine disabled. 01777_ Penetrated by HV Slug. 01777_ Aluminum Leg destroyed. 01777_ Penetrated by HV Slug. 01780_ Heat Sink destroyed. 01781_ EX Chip 1 melted. 01781_ EX Chip 2 melted. 01781_ EX-HEX destroyed. 01782_ Penetrated by HV Slug. 01784_ Grenade Launcher destroyed. 01784_ Penetrated by HV Slug. 01786_ Aluminum Leg destroyed. 01788_ Penetrated by HV Slug. 01788_ HV Slug penetrates Machine. 01788_ Machine disabled. 01788_ HV Slug penetrates Machine. 01790_ Penetrated by HV Slug. 01792_ HV Slug penetrates Machine. 01796_ Penetrated by HV Slug. Map ----- +----------------------------------------------------+ | ?????????????????????????????????????????????????? | | ?????????????????????????????????????????????????? | | ?????????????????????????????????????????????????? | | ?????????????????????????????????????????????????? | | ?????????????????????????????????????????????????? | | ?????????????????????????????????????????????????? | | ?????????????????????????????????????????????????? | | ?????????????????????????????????????????????????? | | ?????????????????????????????????????????????????? | | ?????????????????????????????????????????????????? | | ????????????? ??????????????????????????????????? | | ????????????" ??????????????????????????????????? | | ???????????"" ?????????????????????????????????? | | ???????????" ????????????????????????????????? | | ???????????" #???????????????????????????????? | | ??????????"" #????###########???????????????? | | ????????? " #####"""""""""##??????????????? | | ????????? """ """"##?????????????? | | ???????? "" " #?????????????? | | ???????? """#?????????????? | | ??????? a"#???????????### | | ??????? " "##?????????##" | | ??????? ""###???????#" | | ????????????""" """#??????##" | | ????????????##""" !!! "#????### | | ?????????????#####"" *%! @ ##???# | | ?????????????????##"""!= ##?## | | ??????????????????# % ### | | ??????????????????#"" g ## | | ?????????????????#""""c ### | | ?????????????????" % ""#?# | | ????????????????? #"""##?# | | ???????????????? a % ######??? | | ??????????????? ##???????? | | ???????????????? " ##????????? | | ???????????????? "" """ ""#?????????? | | ???????????????##""" " " ""#" "##?????????? | | ???????????????????##""" """##"""""""##??????????? | | ?????????????????????##"""???#########???????????? | | ????????????????????????#????????????????????????? | | ?????????????????????????????????????????????????? | | ?????????????????????????????????????????????????? | | ?????????????????????????????????????????????????? | | ?????????????????????????????????????????????????? | | ?????????????????????????????????????????????????? | | ?????????????????????????????????????????????????? | | ?????????????????????????????????????????????????? | | ?????????????????????????????????????????????????? | | ?????????????????????????????????????????????????? | | ?????????????????????????????????????????????????? | +----------------------------------------------------+ Best States ------------- Heat Dissipation 35 Energy Generation 10 Energy Capacity 250 Matter Stores 290 Matter Capacity 300 Sight Range 16 Terrain Scan Density 10 Armor Coverage 150 Evasion (%) 55 Item Schematics ----------------- None Robot Schematics ------------------ None Fabricated ------------ Nothing Alien Tech Used ----------------- None Achievements -------------- None Challenges ------------ None Game ------ Seed MediumBurstAnalyzer Manual? 0 Play Time 00:11:12 Cumulative 116.9 hours Start 2023.05.13 @ 19:19:56 End 2023.05.13 @ 19:30:44 Sessions 1 Manual Loads 0 Difficulty Rogue Special Mode None Game No. 108 Rogue 60 Adventurer 22 Explorer 26 Win Type - Total 0 Types 0/0/0/0/0/0/0/0/0 Lore% 38 Gallery% 57 Achievement% 66 Wizard Run 0 Options --------- ASCII 0 Keyboard 0 Movement Mouse Keybinds 0 Fullscreen 0 Font 16/Smallcaps Map View 76x50 Tactical HUD 1 Map Filters NONE Filters BRIGHTNESS(125)|SATURATION(75)|LOW_CONTRAST(0,16,30)|SHIFT_HUE(130) Steam 1 RUN: fc63dcce-2858-4690-8472-c26b3999a479